[Event "CZE-ch Youth G10-G12-G14 2022"]
[Site "Luhacovice"]
[Date "2022.03.12"]
[Round "1.10"]
[White "Vlckova Linda"]
[Black "Kubalova Nikol"]
[Result "0-1"]
[ECO "D31"]
[WhiteElo "1000"]
[BlackElo "1000"]
[Annotator "NA"]
[PlyCount "116"]
[EventDate "2022.03.12"]
[EventType "swiss"]
[EventCountry "CZE"]
[SourceTitle "playchess.com"]
[Source "ChessBase"]
[SourceQuality "1"]
[TimeControl "40/5400+30:1800+30"]

1. d4 {[%emt 0:00:07]} d5 {[%emt 0:00:06]} 2. c4 {[%emt 0:00:26]} c6 {[%emt 0:00:30]} 3. Nf3 {[%emt 0:00:32]} e6 {[%emt 0:00:49]} 4. Nc3 {[%emt 0:00:29]} g6 {[%emt 0:00:44]} 5. Bg5 {[%emt 0:00:30]} f6 {[%emt 0:00:34]} 6. Bxf6 {[%emt 0:00:28]} Nxf6 {[%emt 0:00:15]} 7. e3 {[%emt 0:00:18]} dxc4 {[%emt 0:00:28]} 8. Bxc4 {[%emt 0:00:16]} b5 {[%emt 0:01:12]} 9. Ng5 {[%emt 0:00:26]} bxc4 {[%emt 0:01:17]} 10. O-O {[%emt 0:00:37]} Bh6 {[%emt 0:00:28]} 11. Nf3 {[%emt 0:00:34]} Ng4 {[%emt 0:00:47]} 12. e4 {[%emt 0:00:32]} Ne3 {[%emt 0:00:48]} 13. Qe2 {[%emt 0:00:43]} Nxf1 {[%emt 0:00:46]} 14. Qxf1 {[%emt 0:00:12]} a5 {[%emt 0:00:52]} 15. Qxc4 {[%emt 0:00:21]} a4 {[%emt 0:01:20]} 16. Nxa4 {[%emt 0:00:13]} Bg7 {[%emt 0:01:00]} 17. Nc3 {[%emt 0:01:11]} g5 {[%emt 0:01:20]} 18. g4 {[%emt 0:00:30]} Qf6 {[%emt 0:00:32]} 19. Ne5 {[%emt 0:00:20]} Bf8 {[%emt 0:01:15]} 20. Nxc6 {[%emt 0:00:15]} Rg8 {[%emt 0:00:32]} 21. Nxb8 {[%emt 0:00:23]} Rxb8 {[%emt 0:00:34]} 22. d5 {[%emt 0:00:20]} Rg7 {[%emt 0:02:21]} 23. d6 {[%emt 0:00:30]} Rf7 {[%emt 0:00:30]} 24. Rf1 {[%emt 0:00:26]} Qf3 {[%emt 0:00:38]} 25. a4 {[%emt 0:00:40]} Qxg4+ {[%emt 0:00:29]} 26. Kh1 {[%emt 0:00:24]} Rf4 {[%emt 0:00:38]} 27. Qd3 {[%emt 0:00:15]} Rf3 {[%emt 0:00:48]} 28. d7+ {[%emt 0:00:09]} Bxd7 {[%emt 0:00:38]} 29. Qe2 {[%emt 0:00:23]} Qf4 {[%emt 0:00:55]} 30. Kg1 {[%emt 0:00:23]} Qg4+ {[%emt 0:00:33]} 31. Kh1 {[%emt 0:00:10]} Bd6 {[%emt 0:00:38]} 32. a5 {[%emt 0:00:23]} Bxh2 {[%emt 0:00:21]} 33. Kxh2 {[%emt 0:00:18]} Qg3+ {[%emt 0:00:17]} 34. Kh1 {[%emt 0:00:13]} Qg4 {[%emt 0:00:34]} 35. Rg1 {[%emt 0:00:09]} Qh4+ {[%emt 0:00:36]} 36. Kg2 {[%emt 0:00:14]} Rf4 {[%emt 0:00:07]} 37. Kf1 {[%emt 0:00:18]} Qh3+ {[%emt 0:00:06]} 38. Rg2 {[%emt 0:00:14]} Qh1+ {[%emt 0:00:06]} 39. Rg1 {[%emt 0:00:11]} Rg4 {[%emt 0:00:16]} 40. Qxg4 {[%emt 0:00:19]} Rxb2 {[%emt 0:02:41]} 41. a6 {[%emt 0:31:09]} Qh2 {[%emt 0:30:06]} 42. Qg2 {[%emt 0:00:22]} Qxg2+ {[%emt 0:00:46]} 43. Rxg2 {[%emt 0:00:31]} Bc6 {[%emt 0:00:30]} 44. a7 {[%emt 0:00:14]} Rb3 {[%emt 0:00:22]} 45. Rg3 {[%emt 0:00:14]} Ra3 {[%emt 0:00:22]} 46. Rxg5 {[%emt 0:00:12]} Rxa7 {[%emt 0:00:07]} 47. f4 {[%emt 0:00:20]} h6 {[%emt 0:00:12]} 48. Rg6 {[%emt 0:00:12]} Ra1+ {[%emt 0:00:16]} 49. Ke2 {[%emt 0:00:35]} Bb7 {[%emt 0:00:09]} 50. Rxe6+ {[%emt 0:01:13]} Kd7 {[%emt 0:00:20]} 51. Rxh6 {[%emt 0:00:28]} Ba6+ {[%emt 0:00:07]} 52. Ke3 {[%emt 0:00:24]} Ra3 {[%emt 0:00:00]} 53. Kd4 {[%emt 0:00:22]} Ra5 {[%emt 0:00:00]} 54. f5 {[%emt 0:00:15]} Ra1 {[%emt 0:00:00]} 55. e5 {[%emt 0:00:13]} Rf1 {[%emt 0:00:00]} 56. Rd6+ {[%emt 0:00:17]} Kc7 {[%emt 0:00:00]} 57. f6 {[%emt 0:00:16]} Rf4+ {[%emt 0:00:00]} 58. Ne4 {[%emt 0:00:44]} Bb7 {[%emt 0:00:13]} 0-1

[Event "CZE-ch Youth G10-G12-G14 2022"]
[Site "Luhacovice"]
[Date "2022.03.12"]
[Round "1.11"]
[White "Mazurkova Viktorie"]
[Black "Zadrapova Gabriela"]
[Result "1-0"]
[ECO "C44"]
[WhiteElo "1000"]
[BlackElo "1000"]
[Annotator "NA"]
[PlyCount "135"]
[EventDate "2022.03.12"]
[EventType "swiss"]
[EventCountry "CZE"]
[SourceTitle "playchess.com"]
[Source "ChessBase"]
[SourceQuality "1"]
[TimeControl "40/5400+30:1800+30"]

1. e4 {[%emt 0:00:05]} e5 {[%emt 0:00:08]} 2. Nf3 {[%emt 0:00:13]} Nc6 {[%emt 0:00:22]} 3. d4 {[%emt 0:00:20]} f6 {[%emt 0:00:50]} 4. d5 {[%emt 0:00:40]} Nb4 {[%emt 0:01:02]} 5. a3 {[%emt 0:00:36]} Na6 {[%emt 0:00:54]} 6. Bxa6 {[%emt 0:00:20]} bxa6 {[%emt 0:00:27]} 7. Nbd2 {[%emt 0:01:04]} Ne7 {[%emt 0:00:43]} 8. Nb3 {[%emt 0:01:03]} Bb7 {[%emt 0:02:28]} 9. Be3 {[%emt 0:01:15]} c6 {[%emt 0:01:09]} 10. d6 {[%emt 0:01:09]} Ng6 {[%emt 0:00:53]} 11. Nc5 {[%emt 0:01:02]} Qa5+ {[%emt 0:01:36]} 12. c3 {[%emt 0:00:36]} Bc8 {[%emt 0:00:27]} 13. b4 {[%emt 0:01:39]} Qb5 {[%emt 0:00:55]} 14. h3 {[%emt 0:03:22]} Qb8 {[%emt 0:02:54]} 15. Rb1 {[%emt 0:05:52]} Bxd6 {[%emt 0:06:36]} 16. O-O {[%emt 0:00:30]} a5 {[%emt 0:00:30]} 17. bxa5 {[%emt 0:00:30]} Qc7 {[%emt 0:00:30]} 18. Rb2 {[%emt 0:00:30]} O-O {[%emt 0:00:30]} 19. Qd2 {[%emt 0:00:30]} Rb8 {[%emt 0:00:30]} 20. Rfb1 {[%emt 0:00:30]} Rxb2 {[%emt 0:00:30]} 21. Rxb2 {[%emt 0:00:30]} Bxc5 {[%emt 0:00:30]} 22. Bxc5 {[%emt 0:00:30]} Rd8 {[%emt 0:00:30]} 23. c4 {[%emt 0:00:30]} Ba6 {[%emt 0:00:30]} 24. Qc3 {[%emt 0:00:30]} d6 {[%emt 0:00:30]} 25. Be3 {[%emt 0:00:30]} f5 {[%emt 0:00:30]} 26. exf5 {[%emt 0:00:30]} Ne7 {[%emt 0:00:30]} 27. Bg5 {[%emt 0:00:30]} h6 {[%emt 0:00:30]} 28. Bxe7 {[%emt 0:00:30]} Qxe7 {[%emt 0:00:30]} 29. Qc1 {[%emt 0:00:30]} d5 {[%emt 0:00:30]} 30. c5 {[%emt 0:00:30]} d4 {[%emt 0:00:30]} 31. Qb1 {[%emt 0:00:30]} d3 {[%emt 0:00:30]} 32. Rb8 {[%emt 0:00:30]} d2 {[%emt 0:00:30]} 33. Nxd2 {[%emt 0:00:30]} Bc8 {[%emt 0:00:30]} 34. Qc2 {[%emt 0:00:30]} Kf7 {[%emt 0:00:30]} 35. Ne4 {[%emt 0:00:30]} Bxf5 {[%emt 0:00:30]} 36. Qb3+ {[%emt 0:00:30]} Be6 {[%emt 0:00:30]} 37. Qb7 {[%emt 0:00:30]} Rd7 {[%emt 0:00:30]} 38. Qxc6 {[%emt 0:00:30]} Rd1+ {[%emt 0:00:30]} 39. Kh2 {[%emt 0:00:30]} Bd7 {[%emt 0:00:30]} 40. Nd6+ {[%emt 0:00:30]} Qxd6 {[%emt 0:00:30]} 41. cxd6 {[%emt 0:30:30]} Bxc6 {[%emt 0:30:30]} 42. Rd8 {[%emt 0:00:30]} Ke6 {[%emt 0:00:30]} 43. Rg8 {[%emt 0:00:30]} Kxd6 {[%emt 0:00:30]} 44. Rd8+ {[%emt 0:04:36]} Ke6 {[%emt 0:03:02]} 45. Rg8 {[%emt 0:01:14]} Kd6 {[%emt 0:00:31]} 46. Rxg7 {[%emt 0:00:42]} Kd5 {[%emt 0:00:51]} 47. Rxa7 {[%emt 0:00:43]} Kd4 {[%emt 0:00:36]} 48. Rc7 {[%emt 0:00:39]} Bb5 {[%emt 0:00:36]} 49. a6 {[%emt 0:00:40]} Ke4 {[%emt 0:00:12]} 50. a7 {[%emt 0:01:16]} Rd8 {[%emt 0:01:22]} 51. Rb7 {[%emt 0:00:38]} Bc6 {[%emt 0:00:27]} 52. Rb8 {[%emt 0:00:31]} Rd2 {[%emt 0:00:37]} 53. a4 {[%emt 0:00:34]} Rxf2 {[%emt 0:00:17]} 54. Rb4+ {[%emt 0:00:48]} Ke3 {[%emt 0:00:33]} 55. Rg4 {[%emt 0:00:51]} h5 {[%emt 0:00:24]} 56. Rg8 {[%emt 0:00:38]} Ke2 {[%emt 0:00:35]} 57. a8=Q {[%emt 0:00:30]} Bxa8 {[%emt 0:00:32]} 58. Rxa8 {[%emt 0:00:34]} Kf1 {[%emt 0:00:11]} 59. Rg8 {[%emt 0:00:35]} e4 {[%emt 0:00:18]} 60. a5 {[%emt 0:00:55]} e3 {[%emt 0:00:27]} 61. a6 {[%emt 0:00:45]} e2 {[%emt 0:00:06]} 62. Re8 {[%emt 0:01:02]} Rxg2+ {[%emt 0:00:31]} 63. Kh1 {[%emt 0:00:50]} Ke1 {[%emt 0:00:28]} 64. Kxg2 {[%emt 0:00:27]} Kd1 {[%emt 0:00:08]} 65. a7 {[%emt 0:00:27]} e1=R {[%emt 0:01:04]} 66. Rxe1+ {[%emt 0:00:35]} Kxe1 {[%emt 0:00:13]} 67. a8=R {[%emt 0:00:31]} Ke2 {[%emt 0:00:30]} 68. Ra3 {[%emt 0:00:18]} 1-0

[Event "CZE-ch Youth G10-G12-G14 2022"]
[Site "Luhacovice"]
[Date "2022.03.12"]
[Round "1.12"]
[White "Buchtova, Viktorie"]
[Black "Martinkova Klara"]
[Result "1-0"]
[ECO "C77"]
[WhiteElo "1464"]
[BlackElo "1177"]
[Annotator "NA"]
[PlyCount "95"]
[EventDate "2022.03.12"]
[EventType "swiss"]
[EventCountry "CZE"]
[SourceTitle "playchess.com"]
[Source "ChessBase"]
[SourceQuality "1"]
[TimeControl "40/5400+30:1800+30"]

1. e4 {[%emt 0:00:04]} e5 {[%emt 0:00:28]} 2. Nf3 {[%emt 0:00:21]} Nc6 {[%emt 0:02:05]} 3. Bb5 {[%emt 0:00:04]} a6 {[%emt 0:00:51]} 4. Ba4 {[%emt 0:00:38]} b5 {[%emt 0:02:03]} 5. Bb3 {[%emt 0:00:07]} Nf6 {[%emt 0:02:20]} 6. Nc3 {[%emt 0:03:32]} b4 {[%emt 0:03:48]} 7. Nd5 {[%emt 0:00:07]} Nxe4 {[%emt 0:00:30]} 8. Qe2 {[%emt 0:00:09]} Nc5 {[%emt 0:13:36]} 9. Nxe5 {[%emt 0:00:25]} Nxe5 {[%emt 0:01:18]} 10. Qxe5+ {[%emt 0:00:07]} Ne6 {[%emt 0:00:42]} 11. f4 {[%emt 0:01:55]} Bd6 {[%emt 0:04:04]} 12. Qe4 {[%emt 0:02:18]} Bb7 {[%emt 0:03:26]} 13. f5 {[%emt 0:01:34]} O-O {[%emt 0:04:00]} 14. fxe6 {[%emt 0:00:55]} dxe6 {[%emt 0:00:26]} 15. Ne7+ {[%emt 0:00:16]} Qxe7 {[%emt 0:01:48]} 16. Qxb7 {[%emt 0:00:13]} Rab8 {[%emt 0:01:31]} 17. Qf3 {[%emt 0:00:37]} Qg5 {[%emt 0:02:21]} 18. d3 {[%emt 0:01:45]} Qe5+ {[%emt 0:01:23]} 19. Qe3 {[%emt 0:00:47]} Rb5 {[%emt 0:04:35]} 20. Bc4 {[%emt 0:02:02]} Qxe3+ {[%emt 0:01:01]} 21. Bxe3 {[%emt 0:00:10]} Re5 {[%emt 0:00:14]} 22. Kd2 {[%emt 0:00:27]} Rd8 {[%emt 0:05:06]} 23. Bxa6 {[%emt 0:01:20]} Bc5 {[%emt 0:02:29]} 24. Bxc5 {[%emt 0:01:02]} Rxc5 {[%emt 0:01:24]} 25. Rhf1 {[%emt 0:01:39]} Rd6 {[%emt 0:04:26]} 26. Bb7 {[%emt 0:00:09]} c6 {[%emt 0:01:08]} 27. Ba6 {[%emt 0:00:53]} Kf8 {[%emt 0:02:13]} 28. Rf4 {[%emt 0:00:18]} Ra5 {[%emt 0:03:35]} 29. Bc4 {[%emt 0:00:33]} Ra4 {[%emt 0:01:49]} 30. Bb3 {[%emt 0:00:11]} Ra5 {[%emt 0:01:42]} 31. Rxb4 {[%emt 0:00:20]} Rg5 {[%emt 0:01:15]} 32. g3 {[%emt 0:00:44]} Rb5 {[%emt 0:02:25]} 33. Ra4 {[%emt 0:00:18]} c5 {[%emt 0:01:36]} 34. Rf1 {[%emt 0:00:19]} f6 {[%emt 0:03:40]} 35. Ra8+ {[%emt 0:00:35]} Ke7 {[%emt 0:00:26]} 36. Re1 {[%emt 0:00:31]} c4 {[%emt 0:00:57]} 37. Bxc4 {[%emt 0:00:05]} Rxb2 {[%emt 0:01:03]} 38. Bb3 {[%emt 0:00:10]} g6 {[%emt 0:04:01]} 39. Ra7+ {[%emt 0:00:18]} Kd8 {[%emt 0:02:44]} 40. Kc3 {[%emt 0:00:13]} Rxb3+ {[%emt 0:00:39]} 41. axb3 {[%emt 0:30:02]} Rc6+ {[%emt 0:30:44]} 42. Kb2 {[%emt 0:00:09]} h5 {[%emt 0:00:37]} 43. Rg7 {[%emt 0:00:15]} g5 {[%emt 0:01:31]} 44. Ra1 {[%emt 0:00:06]} Rc8 {[%emt 0:00:50]} 45. Raa7 {[%emt 0:00:07]} Rc7 {[%emt 0:06:01]} 46. Raxc7 {[%emt 0:00:25]} e5 {[%emt 0:01:39]} 47. Ra7 {[%emt 0:00:04]} f5 {[%emt 0:03:43]} 48. Ra8# {[%emt 0:00:05]} 1-0

[Event "CZE-ch Youth G10-G12-G14 2022"]
[Site "Luhacovice"]
[Date "2022.03.12"]
[Round "1.13"]
[White "Nova Anezka"]
[Black "Markina, Sofiia"]
[Result "0-1"]
[ECO "B80"]
[WhiteElo "1111"]
[BlackElo "1367"]
[Annotator "NA"]
[PlyCount "60"]
[EventDate "2022.03.12"]
[EventType "swiss"]
[EventCountry "CZE"]
[SourceTitle "playchess.com"]
[Source "ChessBase"]
[SourceQuality "1"]
[TimeControl "40/5400+30:1800+30"]

1. e4 {[%emt 0:00:06]} c5 {[%emt 0:00:03]} 2. Nf3 {[%emt 0:00:52]} d6 {[%emt 0:00:21]} 3. d4 {[%emt 0:00:46]} cxd4 {[%emt 0:00:08]} 4. Nxd4 {[%emt 0:01:05]} Nf6 {[%emt 0:00:13]} 5. Nc3 {[%emt 0:01:22]} e6 {[%emt 0:00:08]} 6. Bg5 {[%emt 0:03:48]} Be7 {[%emt 0:24:18]} 7. Bc4 {[%emt 0:55:41]} O-O {[%emt 0:00:30]} 8. Qf3 {[%emt 0:00:30]} Nc6 {[%emt 0:00:30]} 9. Nxc6 {[%emt 0:00:30]} bxc6 {[%emt 0:00:30]} 10. O-O-O {[%emt 0:00:30]} Qb6 {[%emt 0:00:30]} 11. Bxf6 {[%emt 0:00:30]} Bxf6 {[%emt 0:00:30]} 12. Rxd6 {[%emt 0:00:30]} Rb8 {[%emt 0:00:30]} 13. Bb5 {[%emt 0:00:30]} Bxc3 {[%emt 0:00:30]} 14. Qxc3 {[%emt 0:00:30]} Qxb5 {[%emt 0:00:30]} 15. Rxc6 {[%emt 0:00:30]} Qg5+ {[%emt 0:00:30]} 16. Qe3 {[%emt 0:00:30]} Qxe3+ {[%emt 0:00:30]} 17. fxe3 {[%emt 0:00:30]} Bb7 {[%emt 0:00:30]} 18. Rc4 {[%emt 0:00:30]} Rfc8 {[%emt 0:00:30]} 19. Ra4 {[%emt 0:00:30]} Bc6 {[%emt 0:00:30]} 20. Rc4 {[%emt 0:00:30]} Bb5 {[%emt 0:00:30]} 21. Rd4 {[%emt 0:00:30]} Rc4 {[%emt 0:00:30]} 22. Rhd1 {[%emt 0:00:30]} g6 {[%emt 0:00:30]} 23. b3 {[%emt 0:06:52]} Rc5 {[%emt 0:06:24]} 24. Rb4 {[%emt 0:03:43]} Rbc8 {[%emt 0:02:16]} 25. c4 {[%emt 0:01:38]} a5 {[%emt 0:00:55]} 26. Rxb5 {[%emt 0:12:47]} Rxb5 {[%emt 0:00:35]} 27. Kb2 {[%emt 0:00:50]} Rxc4 {[%emt 0:02:23]} 28. Rd4 {[%emt 0:02:04]} Rxd4 {[%emt 0:00:14]} 29. exd4 {[%emt 0:00:06]} Rb4 {[%emt 0:00:14]} 30. Kc3 {[%emt 0:00:08]} e5 {[%emt 0:00:40]} 0-1

[Event "CZE-ch Youth G10-G12-G14 2022"]
[Site "Luhacovice"]
[Date "2022.03.12"]
[Round "1.14"]
[White "Horkova, Tereza"]
[Black "Maresova Denisa"]
[Result "1-0"]
[ECO "C02"]
[WhiteElo "1375"]
[BlackElo "1103"]
[Annotator "NA"]
[PlyCount "87"]
[EventDate "2022.03.12"]
[EventType "swiss"]
[EventCountry "CZE"]
[SourceTitle "playchess.com"]
[Source "ChessBase"]
[SourceQuality "1"]
[TimeControl "40/5400+30:1800+30"]

1. e4 {[%emt 0:00:03]} e6 {[%emt 0:00:13]} 2. d4 {[%emt 0:00:06]} d5 {[%emt 0:00:27]} 3. e5 {[%emt 0:00:15]} c5 {[%emt 0:00:13]} 4. c3 {[%emt 0:00:12]} Nc6 {[%emt 0:00:24]} 5. Nf3 {[%emt 0:00:18]} Qb6 {[%emt 0:00:45]} 6. Be2 {[%emt 0:00:21]} c4 {[%emt 0:03:10]} 7. O-O {[%emt 0:01:10]} Nge7 {[%emt 0:01:37]} 8. Qc2 {[%emt 0:06:40]} Ng6 {[%emt 0:03:23]} 9. Re1 {[%emt 0:05:02]} Be7 {[%emt 0:02:38]} 10. Bg5 {[%emt 0:04:38]} O-O {[%emt 0:03:52]} 11. Bxe7 {[%emt 0:01:36]} Ncxe7 {[%emt 0:01:17]} 12. Nbd2 {[%emt 0:02:13]} Nf5 {[%emt 0:04:03]} 13. Nf1 {[%emt 0:08:12]} Bd7 {[%emt 0:09:15]} 14. g3 {[%emt 0:09:06]} h6 {[%emt 0:05:09]} 15. h4 {[%emt 0:06:06]} Qd8 {[%emt 0:18:14]} 16. Kg2 {[%emt 0:06:30]} f6 {[%emt 0:07:29]} 17. exf6 {[%emt 0:02:17]} Qxf6 {[%emt 0:03:19]} 18. Bd1 {[%emt 0:03:30]} Rf7 {[%emt 0:11:06]} 19. N1h2 {[%emt 0:01:57]} Raf8 {[%emt 0:02:45]} 20. Ng4 {[%emt 0:12:03]} Qe7 {[%emt 0:03:03]} 21. h5 {[%emt 0:01:48]} Nh8 {[%emt 0:01:29]} 22. Nfe5 {[%emt 0:01:58]} Qg5 {[%emt 0:04:40]} 23. Nxf7 {[%emt 0:03:44]} Rxf7 {[%emt 0:00:39]} 24. Ne5 {[%emt 0:05:25]} Re7 {[%emt 0:07:42]} 25. Nxd7 {[%emt 0:02:13]} Rxd7 {[%emt 0:00:47]} 26. Rxe6 {[%emt 0:02:06]} Rf7 {[%emt 0:00:46]} 27. Re8+ {[%emt 0:03:29]} Kh7 {[%emt 0:01:31]} 28. Qe2 {[%emt 0:08:04]} g6 {[%emt 0:01:40]} 29. Bc2 {[%emt 0:01:41]} gxh5 {[%emt 0:00:48]} 30. Bxf5+ {[%emt 0:00:18]} Qxf5 {[%emt 0:00:24]} 31. Re1 {[%emt 0:00:37]} h4 {[%emt 0:00:47]} 32. Re5 {[%emt 0:00:56]} Qg6 {[%emt 0:00:22]} 33. Rxd5 {[%emt 0:01:09]} hxg3 {[%emt 0:00:48]} 34. fxg3 {[%emt 0:00:04]} Rg7 {[%emt 0:00:29]} 35. Qe4 {[%emt 0:00:38]} Nf7 {[%emt 0:00:48]} 36. Qxg6+ {[%emt 0:00:18]} Rxg6 {[%emt 0:00:08]} 37. Re7 {[%emt 0:00:22]} Rg7 {[%emt 0:00:42]} 38. Rdd7 {[%emt 0:00:11]} Kg6 {[%emt 0:00:32]} 39. Rxb7 {[%emt 0:00:15]} h5 {[%emt 0:00:09]} 40. Rxa7 {[%emt 0:00:14]} Kf6 {[%emt 0:00:25]} 41. Rxf7+ {[%emt 0:30:14]} Rxf7 {[%emt 0:30:10]} 42. Rxf7+ {[%emt 0:00:03]} Kxf7 {[%emt 0:00:07]} 43. Kh3 {[%emt 0:00:02]} Kg6 {[%emt 0:00:05]} 44. a4 {[%emt 0:00:05]} 1-0

[Event "CZE-ch Youth G10-G12-G14 2022"]
[Site "Luhacovice"]
[Date "2022.03.12"]
[Round "1.15"]
[White "Krisicova Neli"]
[Black "Kammova, Katerina"]
[Result "0-1"]
[ECO "A01"]
[WhiteElo "1093"]
[BlackElo "1376"]
[Annotator "NA"]
[PlyCount "116"]
[EventDate "2022.03.12"]
[EventType "swiss"]
[EventCountry "CZE"]
[SourceTitle "playchess.com"]
[Source "ChessBase"]
[SourceQuality "1"]
[TimeControl "40/5400+30:1800+30"]

1. b3 {[%emt 0:00:06]} e5 {[%emt 0:01:13]} 2. Bb2 {[%emt 0:00:33]} Nc6 {[%emt 0:01:14]} 3. e3 {[%emt 0:00:42]} Nge7 {[%emt 0:03:07]} 4. d3 {[%emt 0:02:35]} Ng6 {[%emt 0:00:55]} 5. Nd2 {[%emt 0:01:52]} Be7 {[%emt 0:02:15]} 6. Ngf3 {[%emt 0:02:10]} O-O {[%emt 0:01:48]} 7. Be2 {[%emt 0:01:06]} d6 {[%emt 0:03:22]} 8. c4 {[%emt 0:01:58]} f5 {[%emt 0:08:18]} 9. Qc2 {[%emt 0:03:14]} a6 {[%emt 0:11:04]} 10. Qc3 {[%emt 0:08:23]} Bf6 {[%emt 0:04:12]} 11. c5 {[%emt 0:07:39]} Be6 {[%emt 0:03:51]} 12. cxd6 {[%emt 0:01:29]} cxd6 {[%emt 0:00:23]} 13. Rc1 {[%emt 0:03:09]} Rc8 {[%emt 0:01:35]} 14. Qc2 {[%emt 0:02:41]} Re8 {[%emt 0:07:30]} 15. O-O {[%emt 0:02:33]} Bf7 {[%emt 0:07:36]} 16. Rfe1 {[%emt 0:03:25]} f4 {[%emt 0:07:27]} 17. Ne4 {[%emt 0:04:29]} Qe7 {[%emt 0:05:30]} 18. Qd2 {[%emt 0:03:18]} d5 {[%emt 0:05:01]} 19. Nxf6+ {[%emt 0:01:59]} Qxf6 {[%emt 0:00:31]} 20. e4 {[%emt 0:07:13]} d4 {[%emt 0:04:00]} 21. Rc2 {[%emt 0:04:04]} Qe7 {[%emt 0:02:30]} 22. Rec1 {[%emt 0:02:05]} Nf8 {[%emt 0:02:04]} 23. Rc5 {[%emt 0:03:38]} Nd7 {[%emt 0:01:41]} 24. R5c2 {[%emt 0:01:08]} Rb8 {[%emt 0:02:47]} 25. Kh1 {[%emt 0:05:09]} Nd8 {[%emt 0:02:11]} 26. Qa5 {[%emt 0:06:49]} Qf6 {[%emt 0:03:36]} 27. b4 {[%emt 0:02:03]} Nc6 {[%emt 0:01:52]} 28. Qa4 {[%emt 0:01:02]} Nb6 {[%emt 0:02:06]} 29. Rxc6 {[%emt 0:01:36]} Nxa4 {[%emt 0:01:18]} 30. Rxf6 {[%emt 0:00:20]} gxf6 {[%emt 0:00:12]} 31. Ba3 {[%emt 0:01:03]} Nc3 {[%emt 0:00:35]} 32. Bd1 {[%emt 0:02:16]} Nxd1 {[%emt 0:00:50]} 33. Rxd1 {[%emt 0:00:08]} b5 {[%emt 0:00:32]} 34. Rc1 {[%emt 0:00:51]} Rec8 {[%emt 0:00:45]} 35. Rc5 {[%emt 0:01:14]} Rxc5 {[%emt 0:00:30]} 36. bxc5 {[%emt 0:00:09]} b4 {[%emt 0:00:10]} 37. Bb2 {[%emt 0:00:15]} Bxa2 {[%emt 0:00:08]} 38. Nd2 {[%emt 0:00:56]} Rc8 {[%emt 0:00:31]} 39. Kg1 {[%emt 0:00:45]} Rxc5 {[%emt 0:00:14]} 40. Nf1 {[%emt 0:02:15]} Rc2 {[%emt 0:00:17]} 41. Ba1 {[%emt 0:30:18]} Rc1 {[%emt 0:30:10]} 42. Bb2 {[%emt 0:00:08]} Rb1 {[%emt 0:00:03]} 43. Bxd4 {[%emt 0:00:31]} exd4 {[%emt 0:00:12]} 44. f3 {[%emt 0:00:15]} Rb2 {[%emt 0:00:17]} 45. Kh1 {[%emt 0:00:27]} Rf2 {[%emt 0:00:23]} 46. Kg1 {[%emt 0:00:14]} Rxf1+ {[%emt 0:00:08]} 47. Kxf1 {[%emt 0:00:07]} b3 {[%emt 0:00:02]} 48. Kf2 {[%emt 0:00:10]} b2 {[%emt 0:00:02]} 49. Ke2 {[%emt 0:00:05]} b1=Q {[%emt 0:00:07]} 50. Kd2 {[%emt 0:00:09]} Qb2+ {[%emt 0:00:19]} 51. Kd1 {[%emt 0:00:07]} Bb3+ {[%emt 0:00:25]} 52. Ke1 {[%emt 0:00:07]} a5 {[%emt 0:00:16]} 53. Kf1 {[%emt 0:00:10]} a4 {[%emt 0:00:15]} 54. h3 {[%emt 0:00:06]} Qc1+ {[%emt 0:00:20]} 55. Kf2 {[%emt 0:00:06]} Qe3+ {[%emt 0:00:16]} 56. Kf1 {[%emt 0:00:08]} a3 {[%emt 0:00:05]} 57. h4 {[%emt 0:00:07]} a2 {[%emt 0:00:05]} 58. h5 {[%emt 0:00:05]} a1=R# {[%emt 0:00:18]} 0-1

[Event "CZE-ch Youth G10-G12-G14 2022"]
[Site "Luhacovice"]
[Date "2022.03.12"]
[Round "1.16"]
[White "Kozusnikova, Daniela"]
[Black "Havelkova Kamila"]
[Result "1-0"]
[ECO "C46"]
[WhiteElo "1364"]
[BlackElo "1092"]
[Annotator "NA"]
[PlyCount "69"]
[EventDate "2022.03.12"]
[EventType "swiss"]
[EventCountry "CZE"]
[SourceTitle "playchess.com"]
[Source "ChessBase"]
[SourceQuality "1"]
[TimeControl "40/5400+30:1800+30"]

1. e4 {[%emt 0:00:03]} e5 {[%emt 0:00:29]} 2. Nf3 {[%emt 0:00:21]} Nc6 {[%emt 0:00:53]} 3. Nc3 {[%emt 0:00:26]} Bc5 {[%emt 0:01:55]} 4. Nxe5 {[%emt 0:02:05]} Nge7 {[%emt 0:03:03]} 5. Nxc6 {[%emt 0:02:47]} Nxc6 {[%emt 0:01:42]} 6. Bc4 {[%emt 0:02:32]} O-O {[%emt 0:01:49]} 7. O-O {[%emt 0:04:02]} d6 {[%emt 0:04:10]} 8. d3 {[%emt 0:02:01]} Be6 {[%emt 0:04:41]} 9. Bd5 {[%emt 0:05:12]} Bd7 {[%emt 0:04:04]} 10. Be3 {[%emt 0:03:02]} Bb4 {[%emt 0:07:59]} 11. Qd2 {[%emt 0:05:02]} Re8 {[%emt 0:05:00]} 12. a3 {[%emt 0:06:11]} Bxc3 {[%emt 0:01:53]} 13. Qxc3 {[%emt 0:01:32]} Ne5 {[%emt 0:01:35]} 14. Bxb7 {[%emt 0:06:33]} Rb8 {[%emt 0:01:24]} 15. Bd5 {[%emt 0:03:14]} c6 {[%emt 0:01:48]} 16. Ba2 {[%emt 0:03:05]} Qh4 {[%emt 0:04:06]} 17. f3 {[%emt 0:03:50]} h6 {[%emt 0:09:05]} 18. Bxa7 {[%emt 0:10:37]} Ra8 {[%emt 0:01:58]} 19. Be3 {[%emt 0:04:31]} Qh5 {[%emt 0:06:33]} 20. Rf2 {[%emt 0:04:15]} Bg4 {[%emt 0:04:08]} 21. fxg4 {[%emt 0:05:23]} Nxg4 {[%emt 0:01:17]} 22. Bxf7+ {[%emt 0:00:49]} Qxf7 {[%emt 0:01:47]} 23. Rxf7 {[%emt 0:00:09]} Kxf7 {[%emt 0:00:53]} 24. Rf1+ {[%emt 0:00:39]} Kg6 {[%emt 0:01:14]} 25. Bd4 {[%emt 0:01:41]} c5 {[%emt 0:00:46]} 26. Bxg7 {[%emt 0:01:02]} Rg8 {[%emt 0:01:25]} 27. Bf6 {[%emt 0:01:01]} Raf8 {[%emt 0:01:41]} 28. Be7 {[%emt 0:01:31]} Re8 {[%emt 0:01:10]} 29. Bxd6 {[%emt 0:00:48]} Ne3 {[%emt 0:01:10]} 30. Rf3 {[%emt 0:03:12]} Ng4 {[%emt 0:02:28]} 31. h3 {[%emt 0:01:38]} Ne5 {[%emt 0:01:42]} 32. Bxe5 {[%emt 0:00:36]} h5 {[%emt 0:01:28]} 33. Qc4 {[%emt 0:01:16]} Rxe5 {[%emt 0:01:00]} 34. Qxg8+ {[%emt 0:00:25]} Kh6 {[%emt 0:00:25]} 35. Rf6# {[%emt 0:00:17]} 1-0